fUSD/lending_fUSD_20260625
["ID","MTS","AMOUNT","RATE_DAILY","PERIOD"]
[426388488,1782336776000,-1000.0,0.00034999,8]
[426388481,1782336776000,-228.72,0.0003499,120]
[426388485,1782336776000,-500.0,0.00034998,120]
[426388489,1782336776000,-100000.00042624,0.00034999,7]
[426388491,1782336776000,-5035.81543129,0.00035,30]
[426388502,1782336776000,-500.0,0.00035,120]
[426388501,1782336776000,-262157.28317924,0.00035,4]
[426388490,1782336776000,-50000.0,0.00035,21]
[426388494,1782336776000,-469.0,0.00035,30]
[426388521,1782336776000,-1222.0,0.00035,30]
[426388479,1782336776000,-150.5,0.0003498,120]
[426388526,1782336776000,-260.670425,0.00035,60]
[426388554,1782336776000,-597.18791238,0.00035,7]
[426388552,1782336776000,-793.86,0.00035,7]
[426388561,1782336776000,-239.31,0.00035,14]
[426388563,1782336776000,-562.06129041,0.00035,120]
[426388570,1782336776000,-6559.94460963,0.00035,120]
[426388562,1782336776000,-307.58463651,0.00035,120]
[426388565,1782336776000,-845.0,0.00035,120]
[426388566,1782336776000,-4203.88263722,0.00035,120]
[426388571,1782336776000,-2728.0,0.00035,120]
[426388567,1782336776000,-1608.5336554,0.00035,7]
[426388569,1782336776000,-112928.68422904,0.00035,120]
[426388564,1782336776000,-780.1753904,0.00035,120]
[426388572,1782336776000,-10839.0,0.00035,60]
[426388573,1782336776000,-160030.0,0.00035,20]
[426388568,1782336776000,-711.2328,0.00035,120]
[426388574,1782336776000,-423.32,0.00035,30]
[426388576,1782336776000,-208.9109,0.00035,2]
[426388577,1782336776000,-5000.0,0.00035,90]
[426388575,1782336776000,-20891.0926,0.00035,2]
[426388579,1782336776000,-704.1358,0.00035,2]
[426388581,1782336776000,-3304.38,0.00035,7]
[426388583,1782336776000,-1983.43,0.00035,30]
[426388584,1782336776000,-1671.6346231,0.00035,30]
[426388580,1782336776000,-800.0,0.00035,7]
[426388585,1782336776000,-247.5,0.00035,2]
[426388582,1782336776000,-56050.0,0.00035,15]
[426388578,1782336776000,-5000.0,0.00035,90]
[426388553,1782336776000,-597.18791238,0.00035,7]
[426388558,1782336776000,-11467.46233166,0.00035,7]
[426388528,1782336776000,-16789.14,0.00035,30]
[426388555,1782336776000,-2220.17321005,0.00035,7]
[426388532,1782336776000,-38220.0263925,0.00035,7]
[426388527,1782336776000,-9782.95738548,0.00035,30]
[426388530,1782336776000,-76440.052785,0.00035,7]
[426388533,1782336776000,-38220.0263925,0.00035,7]
[426388531,1782336776000,-76440.052785,0.00035,7]
[426388536,1782336776000,-9555.00659813,0.00035,7]
[426388535,1782336776000,-19110.01319625,0.00035,7]
[426388534,1782336776000,-19110.01319625,0.00035,7]
[426388529,1782336776000,-7641.5079408,0.00035,120]
[426388538,1782336776000,-4777.50329906,0.00035,7]
[426388544,1782336776000,-800.0,0.00035,7]
[426388537,1782336776000,-9555.00659813,0.00035,7]
[426388545,1782336776000,-800.0,0.00035,7]
[426388551,1782336776000,-5297.43839495,0.00035,7]
[426388546,1782336776000,-1194.37582477,0.00035,7]
[426388549,1782336776000,-90937.87154783,0.00035,7]
[426388559,1782336776000,-150.0,0.00035,120]
[426388560,1782336776000,-207.99086159,0.00035,30]
[426388556,1782336776000,-102708.40354467,0.00035,30]
[426388550,1782336776000,-90937.87154783,0.00035,7]
[426388542,1782336776000,-800.0,0.00035,7]
[426388557,1782336776000,-11467.46233166,0.00035,7]
[426388548,1782336776000,-77842.71682076,0.00035,4]
[426388543,1782336776000,-800.0,0.00035,7]
[426388540,1782336776000,-2388.75164953,0.00035,7]
[426388539,1782336776000,-4777.50329906,0.00035,7]
[426388547,1782336776000,-1194.37582477,0.00035,7]
[426388541,1782336776000,-2388.75164953,0.00035,7]
[426388630,1782336777000,-211.23710555,0.00035083,14]
[426388635,1782336777000,-573.73,0.00035111,2]
[426388625,1782336777000,-5000.0,0.00035061,7]
[426388626,1782336777000,-150.0,0.00035067,120]
[426388629,1782336777000,-200.0,0.00035071,5]
[426388618,1782336777000,-719.4,0.00035,120]
[426388620,1782336777000,-400.96846081,0.00035,2]
[426388615,1782336777000,-10000.0,0.00035,30]
[426388619,1782336777000,-38984.0,0.00035,120]
[426388617,1782336777000,-4753.11343,0.00035,120]
[426388628,1782336777000,-350.0,0.00035068,120]
[426388623,1782336777000,-200.0,0.00035028,5]
[426388627,1782336777000,-150.0,0.00035068,120]
[426388648,1782336777000,-573.72,0.00035111,2]
[426388632,1782336777000,-8206.81272819,0.000351,30]
[426388624,1782336777000,-932.93,0.0003503,62]
[426388634,1782336777000,-1364.688,0.000351,60]
[426388631,1782336777000,-5370.2986,0.00035094,2]
[426388637,1782336777000,-573.72,0.00035111,2]
[426388647,1782336777000,-151.42,0.00035111,2]
[426388636,1782336777000,-573.72,0.00035111,2]
[426388649,1782336777000,-152.13,0.00035111,2]
[426388639,1782336777000,-644.42,0.00035111,2]
[426388638,1782336777000,-482.48,0.00035111,2]
[426388640,1782336777000,-151.0,0.00035111,2]
[426388641,1782336777000,-480.5,0.00035111,2]
[426388621,1782336777000,-749.0,0.00035001,2]
[426388633,1782336777000,-1000.0,0.000351,120]
[426388616,1782336777000,-1527.44197865,0.00035,120]
[426388610,1782336777000,-224.06367099,0.00035,120]
[426388613,1782336777000,-5000.0,0.00035,2]
[426388586,1782336777000,-75682.47635498,0.00035,120]
[426388596,1782336777000,-129188.011356,0.00035,30]
[426388587,1782336777000,-179439.47789817,0.00035,60]
[426388597,1782336777000,-1849.999999,0.00035,2]
[426388595,1782336777000,-200.0,0.00035,120]
[426388598,1782336777000,-464095.54773989,0.00035,90]
[426388588,1782336777000,-10000.0,0.00035,2]
[426388589,1782336777000,-100519.97666329,0.00035,7]
[426388591,1782336777000,-22497.01294109,0.00035,7]
[426388594,1782336777000,-1000.0,0.00035,120]
[426388590,1782336777000,-100519.97666329,0.00035,7]
[426388593,1782336777000,-202.11659454,0.00035,120]
[426388600,1782336777000,-357.64532555,0.00035,120]
[426388608,1782336777000,-71021.99657825,0.00035,30]
[426388609,1782336777000,-69461.12062755,0.00035,120]
[426388644,1782336777000,-482.48,0.00035111,2]
[426388604,1782336777000,-33020.17971314,0.00035,30]
[426388602,1782336777000,-20000.0,0.00035,120]
[426388605,1782336777000,-500.0,0.00035,120]
[426388601,1782336777000,-6981.6820599,0.00035,30]
[426388599,1782336777000,-119246.0,0.00035,2]
[426388606,1782336777000,-2653587.5567505,0.00035,7]
[426388603,1782336777000,-40689.34060889,0.00035,30]
[426388607,1782336777000,-10718.83167703,0.00035,7]
[426388612,1782336777000,-150.0,0.00035,120]
[426388622,1782336777000,-1554.82,0.00035008,30]
[426388614,1782336777000,-50000.0,0.00035,30]
[426388611,1782336777000,-6000.0,0.00035,30]
[426388642,1782336777000,-152.76,0.00035111,2]
[426388592,1782336777000,-22497.01294109,0.00035,7]
[426388646,1782336777000,-573.72,0.00035111,2]
[426388679,1782336777000,-286.86,0.00035237,120]
[426388684,1782336777000,-150.0,0.00035285,2]
[426388685,1782336777000,-150.0,0.00035285,2]
[426388678,1782336777000,-5370.2986,0.00035217,2]
[426388682,1782336777000,-2000.0,0.0003528,7]
[426388686,1782336777000,-150.0,0.00035285,2]
[426388691,1782336777000,-635.82,0.000353,120]
[426388692,1782336777000,-635.82,0.000353,120]
[426388693,1782336777000,-635.82,0.000353,120]
[426388694,1782336777000,-635.82,0.000353,120]
[426388687,1782336777000,-5000.0,0.00035293,30]
[426388689,1782336777000,-635.68,0.000353,30]
[426388688,1782336777000,-635.32,0.000353,120]
[426388695,1782336777000,-234.7417853,0.000353,120]
[426388645,1782336777000,-644.34,0.00035111,2]
[426388696,1782336777000,-893.77,0.000353,120]
[426388697,1782336777000,-893.77,0.000353,30]
[426388698,1782336777000,-1341.595,0.000353,30]
[426388701,1782336777000,-1519.05,0.000353,120]
[426388700,1782336777000,-1517.69,0.000353,30]
[426388704,1782336777000,-5000.0,0.00035306,7]
[426388699,1782336777000,-2385.06,0.000353,60]
[426388702,1782336777000,-1519.05,0.000353,60]
[426388703,1782336777000,-1519.05,0.000353,30]
[426388706,1782336777000,-5000.0,0.00035337,30]
[426388705,1782336777000,-10000.0,0.00035333,2]
[426388707,1782336777000,-5370.2986,0.0003534,2]
[426388681,1782336777000,-674.0,0.00035269,9]
[426388683,1782336777000,-464.09,0.00035283,7]
[426388690,1782336777000,-635.68,0.000353,120]
[426388677,1782336777000,-1290.7043,0.00035217,2]
[426388643,1782336777000,-573.73,0.00035111,2]
[426388654,1782336777000,-185.23,0.00035111,2]
[426388650,1782336777000,-151.0,0.00035111,2]
[426388657,1782336777000,-573.73,0.00035111,2]
[426388652,1782336777000,-151.0,0.00035111,2]
[426388655,1782336777000,-573.48,0.00035111,2]
[426388676,1782336777000,-2000.0,0.00035205,30]
[426388656,1782336777000,-573.49,0.00035111,2]
[426388653,1782336777000,-158.3714054,0.00035111,2]
[426388659,1782336777000,-646.34,0.00035111,2]
[426388658,1782336777000,-184.18,0.00035111,2]
[426388660,1782336777000,-482.48,0.00035111,2]
[426388662,1782336777000,-200.0,0.00035112,5]
[426388672,1782336777000,-5000.0,0.00035205,30]
[426388651,1782336777000,-185.23,0.00035111,2]
[426388674,1782336777000,-2000.0,0.00035205,30]
[426388675,1782336777000,-2000.0,0.00035205,30]
[426388673,1782336777000,-150.0,0.00035205,120]
[426388680,1782336777000,-5000.0,0.00035249,30]
[426388668,1782336777000,-5000.0,0.00035183,7]
[426388670,1782336777000,-200.0,0.00035191,5]
[426388667,1782336777000,-5000.0,0.00035161,30]
[426388671,1782336777000,-488.695487,0.00035198,7]
[426388664,1782336777000,-150.0,0.0003515,120]
[426388661,1782336777000,-484.86,0.00035111,2]
[426388666,1782336777000,-152.0,0.00035156,13]
[426388663,1782336777000,-151.66034041,0.00035138,2]
[426388665,1782336777000,-200.0,0.00035152,5]
[426388669,1782336777000,-10000.0,0.00035188,120]
[426388731,1782336778000,-200.0,0.00035466,5]
[426388721,1782336778000,-200.0,0.00035433,5]
[426388733,1782336778000,-788.0,0.00035471,7]
[426388715,1782336778000,-1500.0,0.000354,2]
[426388714,1782336778000,-158.3714054,0.00035385,2]
[426388713,1782336778000,-5000.0,0.00035381,30]
[426388712,1782336778000,-151.0,0.0003538,120]
[426388720,1782336778000,-5000.0,0.00035429,7]
[426388711,1782336778000,-150.0,0.00035351,120]
[426388718,1782336778000,-2704.898566,0.000354,24]
[426388719,1782336778000,-5000.0,0.00035425,30]
[426388716,1782336778000,-5000.0,0.000354,120]
[426388710,1782336778000,-150.0,0.00035343,60]
[426388709,1782336778000,-350.0,0.00035342,38]
[426388708,1782336778000,-150.0,0.00035342,120]
[426388722,1782336778000,-6180.157,0.00035433,42]
[426388717,1782336778000,-150.0,0.000354,120]
[426388729,1782336778000,-5370.2986,0.00035462,2]
[426388743,1782336778000,-3000000.0,0.000355,120]
[426388723,1782336778000,-327.525,0.00035433,42]
[426388726,1782336778000,-100000.0,0.00035455,30]
[426388744,1782336778000,-2081413.48431531,0.000355,120]
[426388740,1782336778000,-800.0,0.000355,7]
[426388741,1782336778000,-3000000.0,0.000355,120]
[426388742,1782336778000,-3000000.0,0.000355,120]
[426388737,1782336778000,-800.0,0.000355,7]
[426388739,1782336778000,-800.0,0.000355,7]
[426388736,1782336778000,-10000.0,0.000355,120]
[426388738,1782336778000,-800.0,0.000355,7]
[426388734,1782336778000,-150.0,0.00035479,120]
[426388730,1782336778000,-200.0,0.00035466,5]
[426388724,1782336778000,-100000.0,0.00035455,120]
[426388732,1782336778000,-5000.0,0.00035469,30]
[426388727,1782336778000,-87660.24534363,0.00035455,90]
[426388725,1782336778000,-100000.0,0.00035455,60]
[426388728,1782336778000,-932.93,0.0003546,88]
[426388735,1782336778000,-1000.0,0.000355,60]
[426388746,1782336779000,1638.66,0.00029208,30]
[426388745,1782336779000,-3578.70789006,0.00029936,7]
[426388750,1782336780000,-377.48,0.00026027,7]
[426388747,1782336780000,-1265.2233,0.00026007,7]
[426388752,1782336780000,-711.68,0.00027052,7]
[426388749,1782336780000,-1425.0188706,0.00026007,7]
[426388748,1782336780000,-2844.1778294,0.00026007,7]
[426388753,1782336780000,5534.42,0.00030188,30]
[426388754,1782336780000,5534.42,0.00031234,30]
[426388755,1782336780000,419.04,0.00030226,30]
[426388751,1782336780000,-909.08208263,0.00027052,7]
[426388756,1782336780000,419.04,0.00031312,30]
[426388757,1782336780000,628.57,0.0002601,30]
[426388760,1782336782000,220.23023224,0.00037506,60]
[426388759,1782336782000,220.23023224,0.00037506,60]
[426388758,1782336782000,220.23023224,0.00037506,60]
[426388763,1782336783000,220.23023224,0.00037506,60]
[426388762,1782336783000,220.23023224,0.00037506,60]
[426388765,1782336783000,220.23023224,0.00037506,60]
[426388766,1782336783000,220.23023224,0.00037506,60]
[426388764,1782336783000,220.23023224,0.00037506,60]
[426388761,1782336783000,220.23023224,0.00037506,60]
[426388768,1782336783000,220.23023224,0.00037506,60]
[426388769,1782336783000,220.23023224,0.00037506,60]
[426388770,1782336783000,220.23023224,0.00037506,60]
[426388771,1782336783000,220.23023224,0.00037506,60]
[426388772,1782336783000,220.23023224,0.00037506,60]
[426388767,1782336783000,220.23023224,0.00037506,60]
[426388778,1782336784000,320.57,0.0002601,30]
[426388777,1782336784000,213.71,0.00031365,30]
[426388776,1782336784000,213.71,0.0003029,30]
[426388775,1782336784000,655.46,0.00029284,30]
[426388774,1782336784000,1042.01,0.00029316,30]
[426388773,1782336784000,1160.83,0.00029199,30]
[426388779,1782336785000,580.41,0.00029275,30]
[426388781,1782336785000,155.7,0.00030682,30]
[426388780,1782336785000,521.01,0.00029391,30]
[426388782,1782336786000,163.49,0.0002601,30]
[426388783,1782336786000,163.49,0.00028039,30]
[426388784,1782336786000,163.49,0.00030067,30]
[426388785,1782336786000,232.16,0.0002935,30]
[426388786,1782336786000,208.4,0.00029464,30]
[426388790,1782336786000,151.0,0.00037506,30]
[426388787,1782336786000,151.0,0.00037506,30]
[426388789,1782336786000,151.0,0.00037506,30]
[426388792,1782336786000,151.0,0.00037506,30]
[426388788,1782336786000,151.0,0.00037506,30]
[426388793,1782336786000,151.0,0.00037506,30]
[426388794,1782336786000,151.0,0.00037506,30]
[426388795,1782336786000,151.0,0.00037506,30]
[426388796,1782336786000,151.0,0.00037506,30]
[426388797,1782336786000,151.0,0.00037506,30]
[426388799,1782336786000,151.0,0.00037506,30]
[426388798,1782336786000,151.0,0.00037506,30]
[426388800,1782336786000,151.0,0.00037506,30]
[426388801,1782336786000,151.0,0.00037506,30]
[426388791,1782336786000,151.0,0.00037506,30]
[426388802,1782336787000,151.0,0.00037506,30]
[426388803,1782336787000,151.0,0.00037506,30]
[426388804,1782336787000,151.0,0.00037506,30]
[426388807,1782336787000,166.73,0.00029537,30]
[426388805,1782336787000,151.0,0.00037506,30]
[426388809,1782336787000,327.73,0.00029359,30]
[426388810,1782336787000,163.87,0.00029433,30]
[426388811,1782336787000,151.36,0.00029797,30]
[426388806,1782336787000,151.0,0.00037506,30]
[426388808,1782336787000,154.78,0.00029424,30]
[426388813,1782336828000,606.62,0.00030492,30]
[426388815,1782336832000,151.0,0.00037506,60]
[426388814,1782336832000,151.0,0.00037506,60]
[426388817,1782336833000,151.0,0.00037506,60]
[426388816,1782336833000,151.0,0.00037506,60]
[426388818,1782336834000,151.0,0.00037506,60]
[426388819,1782336834000,151.0,0.00037506,60]
[426388820,1782336834000,151.0,0.00037506,60]
[426388821,1782336835000,151.0,0.00037506,60]
[426388822,1782336835000,151.0,0.00037506,60]
[426388824,1782336836000,151.0,0.00037506,60]
[426388823,1782336836000,151.0,0.00037506,60]
[426388826,1782336837000,151.0,0.00037506,60]
[426388825,1782336837000,151.0,0.00037506,60]
[426388829,1782336838000,151.0,0.00037506,60]
[426388828,1782336838000,151.0,0.00037506,60]
[426388827,1782336838000,151.0,0.00037506,60]
[426388831,1782336839000,151.0,0.00037506,60]
[426388830,1782336839000,151.0,0.00037506,60]
[426388833,1782336840000,151.0,0.00037506,60]
[426388832,1782336840000,151.0,0.00037506,60]
[426388834,1782336852000,580.41,0.0002957,30]
[426388835,1782336853000,521.0,0.0002968,30]
[426388836,1782336855000,934.03,0.00029507,30]
[426388837,1782336871000,305.29,0.00030481,30]
[426388839,1782336890000,9109.25397578,0.00037506,120]
[426388844,1782336892000,166.66,0.00023558,30]
[426388843,1782336892000,166.66,0.00023101,30]
[426388841,1782336892000,166.66,0.00022186,30]
[426388842,1782336892000,166.66,0.00022644,30]
[426388846,1782336893000,151.0,0.00037506,60]
[426388845,1782336893000,166.66,0.00024016,30]
[426388849,1782336894000,151.0,0.00037506,60]
[426388848,1782336894000,151.0,0.00037506,60]
[426388847,1782336894000,151.0,0.00037506,60]
[426388850,1782336895000,151.0,0.00037506,60]
[426388851,1782336895000,151.0,0.00037506,60]
[426388854,1782336896000,151.0,0.00037506,60]
[426388853,1782336896000,151.0,0.00037506,60]
[426388856,1782336897000,151.0,0.00037506,60]
[426388855,1782336897000,151.0,0.00037506,60]
[426388858,1782336898000,151.0,0.00037506,60]
[426388857,1782336898000,151.0,0.00037506,60]
[426388860,1782336899000,151.0,0.00037506,60]
[426388859,1782336899000,151.0,0.00037506,60]
[426388861,1782336900000,151.0,0.00037506,60]
[426388862,1782336900000,151.0,0.00037506,60]
[426388864,1782336901000,151.0,0.00037506,60]
[426388863,1782336901000,151.0,0.00037506,60]
[426388866,1782336902000,151.0,0.00037506,60]
[426388865,1782336902000,151.0,0.00037506,60]
[426388867,1782336913000,165.64794187,0.00029,30]
[426388868,1782336920000,427.22,0.00029751,30]
[426388869,1782336926000,1539.01189123,0.00037506,60]
[426388873,1782336927000,1000.0,0.00030685,120]
[426388871,1782336927000,158.0,0.00028753,30]
[426388874,1782336927000,1539.01189123,0.00037506,60]
[426388872,1782336927000,1539.01189123,0.00037506,60]
[426388870,1782336927000,1539.01189123,0.00037506,60]
[426388877,1782336928000,1539.01189123,0.00037506,60]
[426388875,1782336928000,1539.01189123,0.00037506,60]
[426388878,1782336928000,1539.01189123,0.00037506,60]
[426388876,1782336928000,158.0,0.00029753,30]
[426388879,1782336929000,1539.01189123,0.00037506,60]
[426388880,1782336929000,1539.01189123,0.00037506,60]
[426388883,1782336929000,1539.01189123,0.00037506,60]
[426388882,1782336929000,158.0,0.00030753,30]
[426388881,1782336929000,668.57,0.00029579,30]
[426388886,1782336930000,1539.01189123,0.00037506,60]
[426388885,1782336930000,1539.01189123,0.00037506,60]
[426388884,1782336930000,1539.01189123,0.00037506,60]
[426388888,1782336931000,1539.01189123,0.00037506,60]
[426388887,1782336931000,1539.01189123,0.00037506,60]
[426388889,1782336931000,1539.01189123,0.00037506,60]
[426388893,1782336932000,1539.01189123,0.00037506,60]
[426388892,1782336932000,1539.01189123,0.00037506,60]
[426388891,1782336932000,1539.01189123,0.00037506,60]
[426388890,1782336932000,1539.01189123,0.00037506,60]
[426388894,1782336933000,1539.01189123,0.00037506,60]
[426388895,1782336933000,475.93,0.00029642,30]
[426388897,1782336933000,1539.01189123,0.00037506,60]
[426388896,1782336933000,1539.01189123,0.00037506,60]
[426388899,1782336934000,1539.01189123,0.00037506,60]
[426388898,1782336934000,1539.01189123,0.00037506,60]
[426388900,1782336934000,1539.01189123,0.00037506,60]
[426388903,1782336935000,1539.01189123,0.00037506,60]
[426388902,1782336935000,1539.01189123,0.00037506,60]
[426388901,1782336935000,1539.01189123,0.00037506,60]
[426388904,1782336936000,1539.01189123,0.00037506,60]
[426388906,1782336948000,250.4,0.00030542,30]
[426388907,1782336963000,600.0,0.00037506,120]
[426388908,1782336969000,202.0,0.00028753,30]
[426388909,1782336970000,202.0,0.00029753,30]
[426388910,1782336972000,202.0,0.00030753,30]
[426388913,1782337000000,305.31,0.00029821,30]
[426388914,1782337006000,382.14,0.00029651,30]
[426388916,1782337009000,298.72,0.00029713,30]
[426388918,1782337024000,195.4,0.00037506,120]
[426388919,1782337028000,610.22,0.00030992,30]
[426388920,1782337033000,214.18,0.00030604,30]
[426388921,1782337033000,331.29588373,0.0002958,30]
[426388922,1782337034000,576.0,0.00028693,30]
[426388923,1782337036000,576.0,0.00029693,30]
[426388924,1782337037000,576.0,0.00030693,30]
[426388926,1782337046000,166.53503891,0.00037506,60]
[426388927,1782337047000,166.53503891,0.00037506,60]
[426388929,1782337056000,6091.16,0.00031108,30]
[426388930,1782337069000,1013.0,0.00028693,30]
[426388931,1782337071000,1013.0,0.00029693,30]
[426388932,1782337072000,1013.0,0.00030693,30]
[426388933,1782337073000,493.55,0.00029888,30]
[426388934,1782337077000,525.68,0.00029781,30]
[426388935,1782337079000,581.07,0.0002972,30]
[426388959,1782337111000,259.56,0.0003065,30]
[426388960,1782337117000,151.0,0.00028693,30]
[426388961,1782337118000,151.0,0.00029693,30]
[426388962,1782337119000,151.0,0.00030693,30]
[426388980,1782337149000,427.04,0.00029955,30]
[426388981,1782337154000,511.25,0.00029849,30]
[426388982,1782337156000,651.36,0.00029789,30]
[426388983,1782337160000,151.0,0.00028693,30]
[426388984,1782337161000,151.0,0.00029693,30]
[426388985,1782337163000,151.0,0.00030693,30]
[426388986,1782337166000,166.5350389,0.00037386,60]
[426388988,1782337184000,320.11,0.00030709,30]
[426388989,1782337199000,476.0,0.00028693,30]
[426388990,1782337201000,476.0,0.00029693,30]
[426388991,1782337203000,476.0,0.00030693,30]
[426388992,1782337215000,500.0,0.00037386,120]
[426388993,1782337217000,737.35,0.0003002,30]
[426388994,1782337219000,826.08,0.00029917,30]
[426388995,1782337227000,330.0,0.00037386,120]
[426388999,1782337231000,523.05,0.00030915,30]
[426389000,1782337233000,152.0,0.00028693,30]
[426389001,1782337234000,872.55,0.00029856,30]
[426389002,1782337235000,152.0,0.00029693,30]
[426389003,1782337236000,152.0,0.00030693,30]
[426389005,1782337256000,185.08,0.00030411,120]
[426389007,1782337266000,333.56,0.00030766,30]
[426389008,1782337267000,163.0,0.00028693,30]
[426389009,1782337268000,163.0,0.00029693,30]
[426389010,1782337269000,163.0,0.00030693,30]
[426389011,1782337286000,600.61,0.00029982,30]
[426389012,1782337294000,547.27,0.00030085,30]
[426389013,1782337305000,648.81,0.00029924,30]
[426389014,1782337315000,743.0,0.00028693,30]
[426389015,1782337316000,743.0,0.00029693,30]
[426389016,1782337318000,743.0,0.00030693,30]
[426389017,1782337337000,448.33,0.00031216,30]
[426389018,1782337344000,305.2,0.00030824,30]
[426389019,1782337364000,506.25,0.00030048,30]
[426389020,1782337369000,451.1,0.0003015,30]
[426389021,1782337379000,301.0,0.00028697,30]
[426389022,1782337380000,301.0,0.00029697,30]
[426389023,1782337382000,301.0,0.00030697,30]
[426389024,1782337383000,577.92,0.0002999,30]
[426389025,1782337393000,993.88765122,0.00030172,30]
[426389026,1782337426000,306.14,0.00030882,30]
[426389027,1782337429000,552.07,0.00030113,30]
[426389028,1782337443000,489.46,0.00030213,30]
[426389030,1782337456000,150.0,0.00030273,120]
[426389031,1782337456000,615.86,0.00030055,30]
[426389029,1782337456000,150.0,0.00030136,120]
[426389032,1782337457000,150.0,0.0003041,120]
[426389033,1782337457000,185.77629268,0.00030547,120]
[426389034,1782337504000,538.83,0.00030177,30]
[426389037,1782337504000,160.68020166,0.000288,30]
[426389036,1782337504000,150.0,0.000288,30]
[426389035,1782337504000,258.91851407,0.000288,30]
[426389038,1782337505000,168.88011083,0.000288,30]
[426389041,1782337507000,155.45821798,0.000288,30]
[426389040,1782337507000,153.2014125,0.000288,30]
[426389039,1782337507000,223.90919513,0.000288,30]
[426389042,1782337508000,289.33921734,0.000288,30]
[426389044,1782337510000,166.7659245,0.000288,30]
[426389043,1782337510000,310.17,0.00030935,30]
[426389045,1782337510000,150.0,0.000288,30]
[426389046,1782337511000,1001.0,0.00030493,120]
[426389047,1782337512000,192.35127979,0.000288,30]
[426389048,1782337514000,500.0,0.00037395,120]
[426389050,1782337515000,500.0,0.00037395,120]
[426389049,1782337515000,500.0,0.00037395,120]
[426389051,1782337516000,500.0,0.00037395,120]
[426389052,1782337516000,500.0,0.00037395,120]
[426389053,1782337516000,641.29391302,0.00037395,120]
[426389054,1782337521000,482.65,0.00030276,30]
[426389055,1782337527000,589.83,0.0003012,30]
[426389057,1782337568000,5583.56,0.00030536,30]
[426389058,1782337569000,244.0,0.00030656,30]
[426389059,1782337583000,500.0,0.00031303,30]
[426389061,1782337584000,481.35,0.0003024,30]
[426389060,1782337584000,500.0,0.00031303,30]
[426389062,1782337586000,500.0,0.00031029,30]
[426389064,1782337587000,603.402,0.00031029,30]
[426389063,1782337587000,500.0,0.00031029,30]
[426389065,1782337593000,431.38,0.00030338,30]
[426389066,1782337594000,533.17,0.00030184,30]
[426389067,1782337596000,302.64,0.00030992,30]
[426389068,1782337610000,5000.0,0.00037395,117]
[426389070,1782337633000,165.64794187,0.00030172,30]
[426389071,1782337646000,500.0,0.00030755,30]
[426389073,1782337647000,500.0,0.00030755,30]
[426389072,1782337647000,500.0,0.00030755,30]